bitfinex-derivatives/quotes_BTCF0:USTF0_20250822
["timestamp","ask_amount","ask_price","bid_price","bid_amount"]
[1755885514463,0.03679423,117000.0,116990.0,1.95438207]
[1755885515462,0.03679423,117000.0,116990.0,1.59358207]
[1755885516058,0.10129423,117000.0,116990.0,1.59358207]
[1755885516658,0.10129423,117000.0,116990.0,1.1901978]
[1755885516858,0.10129423,117000.0,116990.0,1.59358207]
[1755885517466,0.10129423,117000.0,116990.0,1.95438207]
[1755885517668,0.03679423,117000.0,116990.0,1.95438207]
[1755885517867,0.01912423,117000.0,116990.0,1.95438207]
[1755885519268,0.01912423,117000.0,116990.0,2.20438207]
[1755885520777,0.51143,117020.0,117010.0,0.3450232]
[1755885520982,0.01933272,117020.0,117010.0,1.57896747]
[1755885521177,2.0159635,117030.0,117020.0,0.1892659]
[1755885521378,1.94984501,117030.0,117020.0,0.74840017]
[1755885521578,1.67788501,117030.0,117020.0,0.74840017]
[1755885521777,1.76333361,117030.0,117020.0,0.74840017]
[1755885522180,1.67449361,117030.0,117020.0,0.74840017]
[1755885522378,1.58904501,117030.0,117020.0,0.81632018]
[1755885522686,0.17834,117040.0,117030.0,0.3450086]
[1755885522874,0.28651733,117040.0,117030.0,1.57883287]
[1755885523070,1.78651733,117040.0,117030.0,1.57883287]
[1755885523985,1.78651733,117040.0,117030.0,1.58800884]
[1755885524185,1.78691733,117040.0,117030.0,1.58820884]
[1755885524685,1.69807733,117040.0,117030.0,1.94900884]
[1755885524880,1.65535733,117040.0,117030.0,1.94900884]
[1755885525378,1.78791733,117040.0,117030.0,1.94900884]
[1755885526182,1.69907733,117040.0,117030.0,1.94900884]
[1755885526383,0.19907733,117040.0,117030.0,1.94900884]
[1755885526779,1.65535733,117040.0,117030.0,1.94900884]
[1755885527479,1.82963863,117040.0,117030.0,2.01669746]
[1755885527681,1.74419733,117040.0,117030.0,2.01669746]
[1755885527894,1.78791733,117040.0,117030.0,2.01669746]
[1755885528280,1.87335863,117040.0,117030.0,2.01669746]
[1755885528882,1.87335863,117040.0,117030.0,1.47938886]
[1755885529082,1.87335863,117040.0,117030.0,1.57000886]
[1755885529383,1.87335863,117040.0,117030.0,1.16662459]
[1755885529584,2.23415863,117040.0,117030.0,1.57000886]
[1755885529779,2.23415863,117040.0,117030.0,1.65545746]
[1755885530681,2.23415863,117040.0,117030.0,1.57000886]
[1755885531690,2.23415863,117040.0,117030.0,1.65545746]
[1755885533484,2.23415863,117040.0,117030.0,1.47938886]
[1755885533788,2.8875429,117040.0,117030.0,0.90678459]
[1755885534088,2.8875429,117040.0,117030.0,0.0002]
[1755885534390,0.3526359,117020.0,117010.0,0.25956]
[1755885534581,0.73274368,117020.0,117010.0,0.88931]
[1755885534987,0.7134359,117020.0,117010.0,1.08916]
[1755885535188,0.7134359,117020.0,117010.0,1.18392197]
[1755885535791,0.7134359,117020.0,117010.0,1.58730624]
[1755885535989,0.7134359,117020.0,117010.0,1.57163536]
[1755885536187,0.7134359,117020.0,117010.0,1.45600536]
[1755885536388,0.7134359,117020.0,117010.0,1.14324109]
[1755885536786,0.7134359,117020.0,117010.0,1.22870429]
[1755885536987,0.03573013,117020.0,117010.0,1.65809856]
[1755885537195,0.01931013,117020.0,117010.0,2.01889856]
[1755885537589,0.01931013,117020.0,117010.0,2.26889856]
[1755885537789,0.01971013,117020.0,117010.0,2.26909856]
[1755885539401,0.0004,117020.0,117010.0,2.26909856]
[1755885539796,0.07612,117020.0,117010.0,2.26909856]
[1755885540003,0.25629,117020.0,117010.0,2.01909856]
[1755885540398,0.25629,117020.0,117010.0,1.65829856]
[1755885540593,0.3417459,117020.0,117010.0,1.25491429]
[1755885540789,0.3417459,117020.0,117010.0,0.82869856]
[1755885540993,0.3417459,117020.0,117010.0,1.25463429]
[1755885541193,0.3417459,117020.0,117010.0,1.65801856]
[1755885541391,0.3417459,117020.0,117010.0,1.16917109]
[1755885541592,0.7025459,117020.0,117010.0,0.31282109]
[1755885541797,0.7025459,117020.0,117010.0,1.14206109]
[1755885542105,0.72186222,117020.0,117010.0,1.25256429]
[1755885542302,0.72186222,117020.0,117010.0,1.65594856]
[1755885542804,0.7025459,117020.0,117010.0,1.65594856]
[1755885543302,0.72186395,117020.0,117010.0,1.65594856]
[1755885543506,0.72186395,117020.0,117010.0,1.65494856]
[1755885543697,0.72186395,117020.0,117010.0,1.25256429]
[1755885543896,0.72186395,117020.0,117010.0,1.65594856]
[1755885544096,0.72186582,117020.0,117010.0,1.65594856]
[1755885545403,0.01971992,117020.0,117010.0,1.65594856]
[1755885545699,0.0004,117020.0,117010.0,1.90594856]
[1755885546504,0.07612,117020.0,117010.0,1.65594856]
[1755885546905,0.01625,117020.0,117010.0,1.65594856]
[1755885547304,0.0004,117020.0,117010.0,1.65594856]
[1755885547607,0.0004,117020.0,117010.0,1.90594856]
[1755885548100,0.0004,117020.0,117010.0,2.26674856]
[1755885548907,0.01893209,117030.0,117020.0,0.3029459]
[1755885549207,0.01893209,117030.0,117020.0,0.74637017]
[1755885550801,0.01893209,117030.0,117020.0,1.10717017]
[1755885552310,0.01893209,117030.0,117020.0,1.35717017]
[1755885552507,0.01933209,117030.0,117020.0,1.35737017]
[1755885553105,0.0004,117030.0,117020.0,1.35737017]
[1755885553305,0.0004,117030.0,117020.0,1.41872607]
[1755885555109,1.5,117040.0,117030.0,0.3429786]
[1755885555412,1.5,117040.0,117030.0,1.93564287]
[1755885556501,1.5,117040.0,117030.0,1.95267225]
[1755885556911,0.19602,117050.0,117040.0,0.1284613]
[1755885557111,0.16516,117050.0,117040.0,0.74635557]
[1755885557305,0.25589,117050.0,117040.0,0.74635557]
[1755885557504,1.75589,117050.0,117040.0,0.74635557]
[1755885558406,1.75589,117050.0,117040.0,1.10715557]
[1755885558713,1.75629,117050.0,117040.0,0.74655557]
[1755885559012,1.75629,117050.0,117040.0,0.3431713]
[1755885559211,1.75629,117050.0,117040.0,0.74655557]
[1755885559712,1.75629,117050.0,117040.0,1.10735557]
[1755885560213,1.75629,117050.0,117040.0,0.74655557]
[1755885560711,1.75629,117050.0,117040.0,1.10735557]
[1755885560913,1.75629,117050.0,117040.0,0.74655557]
[1755885562013,1.75629,117050.0,117040.0,1.57459557]
[1755885562411,1.60239,117050.0,117040.0,2.33877984]
[1755885562913,1.60239,117050.0,117040.0,1.93539557]
[1755885563911,1.60239,117050.0,117040.0,2.33877984]
[1755885564106,1.69312,117050.0,117040.0,1.5320113]
[1755885564310,1.75629,117050.0,117040.0,1.93539557]
[1755885564512,1.66556,117050.0,117040.0,1.93539557]
[1755885564707,1.66556,117050.0,117040.0,2.33877984]
[1755885564708,0.07612,117050.0,117040.0,2.33877984]
[1755885565015,0.01625,117050.0,117040.0,2.33877984]
[1755885565619,0.0004,117050.0,117040.0,2.58877984]
[1755885569119,0.0004,117050.0,117040.0,2.58977984]
[1755885570014,0.0004,117050.0,117040.0,2.33977984]
[1755885570815,0.0004,117050.0,117040.0,2.58977984]
[1755885575423,0.0004,117050.0,117040.0,2.60728164]
[1755885575826,0.25808,117070.0,117060.0,0.3444067]
[1755885576027,0.25808,117070.0,117060.0,1.93575097]
[1755885576622,0.16685,117070.0,117060.0,1.93575097]
[1755885576826,0.16685,117070.0,117060.0,1.95289533]
[1755885576827,0.01622,117070.0,117060.0,1.95289533]
[1755885577024,0.16685,117080.0,117070.0,0.1866594]
[1755885577327,0.25808,117080.0,117070.0,0.74778367]
[1755885577820,0.25808,117080.0,117070.0,0.816358]
[1755885578222,0.16685,117080.0,117070.0,0.816358]
[1755885578426,0.25808,117080.0,117070.0,0.816358]
[1755885579424,0.25808,117080.0,117070.0,0.82568913]
[1755885579626,0.25848,117080.0,117070.0,0.82588913]
[1755885580432,0.25848,117080.0,117070.0,1.18668913]
[1755885580834,0.25848,117080.0,117070.0,2.01348913]
[1755885581133,0.3438921,117080.0,117070.0,1.65256913]
[1755885581327,0.3438921,117080.0,117070.0,1.56116913]
[1755885581532,0.3438921,117080.0,117070.0,1.65256913]
[1755885582322,0.3438921,117080.0,117070.0,0.82588913]
[1755885582527,0.7046921,117080.0,117070.0,1.45164973]
[1755885582733,0.7046921,117080.0,117070.0,1.04826546]
[1755885582934,0.7046921,117080.0,117070.0,1.62846913]
[1755885583135,0.7046921,117080.0,117070.0,1.22508486]
[1755885583436,0.7046921,117080.0,117070.0,1.65244913]
[1755885583825,0.52805,117080.0,117070.0,1.65244913]
[1755885584135,0.25848,117080.0,117070.0,1.65244913]
[1755885584836,0.16725,117080.0,117070.0,1.65244913]
[1755885585039,0.25848,117080.0,117070.0,1.65244913]
[1755885586336,0.3438921,117080.0,117070.0,1.65244913]
[1755885586835,0.16725,117080.0,117070.0,1.65244913]
[1755885587041,0.25848,117080.0,117070.0,1.65244913]
[1755885589840,0.25848,117080.0,117070.0,1.24906486]
[1755885590037,0.25848,117080.0,117070.0,1.65244913]
[1755885590448,0.3438921,117080.0,117070.0,1.65244913]
[1755885590736,0.1879721,117080.0,117070.0,1.65244913]
[1755885590941,0.25848,117080.0,117070.0,1.65244913]
[1755885592536,0.25848,117080.0,117070.0,1.65344913]
[1755885593342,0.16725,117080.0,117070.0,1.65344913]
[1755885593840,0.25848,117080.0,117070.0,1.65344913]
[1755885596330,0.3438921,117080.0,117070.0,1.56108913]
[1755885596536,0.7046921,117080.0,117070.0,1.65248913]
[1755885596736,0.7046921,117080.0,117070.0,1.16368546]
[1755885596939,0.7046921,117080.0,117070.0,1.65248913]
[1755885599243,0.7046921,117080.0,117070.0,1.24910486]
[1755885599448,0.7046921,117080.0,117070.0,1.65248913]
[1755885599645,0.3438921,117080.0,117070.0,1.24910486]
[1755885599839,0.7046921,117080.0,117070.0,1.65248913]
[1755885600144,0.7046921,117080.0,117070.0,1.24910486]
[1755885600444,0.7046921,117080.0,117070.0,1.65248913]
[1755885600645,0.7046921,117080.0,117070.0,0.82688913]
[1755885601340,0.7046921,117080.0,117070.0,1.65216913]
[1755885601642,0.46336,117080.0,117070.0,1.65216913]
[1755885601944,0.01662,117080.0,117070.0,2.01296913]
[1755885602143,0.0004,117080.0,117070.0,2.01296913]
[1755885602542,0.544864,117100.0,117090.0,0.3392853]
[1755885602735,0.47901178,117100.0,117090.0,1.56786957]
[1755885602936,0.39634178,117100.0,117090.0,1.56786957]
[1755885603142,0.71743978,117100.0,117090.0,1.56786957]
[1755885603344,0.54412178,117100.0,117090.0,1.56523281]
[1755885603745,0.71743978,117100.0,117090.0,1.56523281]
[1755885603948,0.63204178,117100.0,117090.0,1.56523281]
[1755885604547,0.12041178,117100.0,117090.0,1.16184854]
[1755885604748,0.18878,117100.0,117090.0,1.16184854]
[1755885604938,0.21253,117100.0,117090.0,1.56523281]
[1755885605543,0.01599,117100.0,117090.0,1.56523281]
[1755885605746,0.01639,117100.0,117090.0,1.56543281]
[1755885606043,0.16323,117100.0,117090.0,1.56543281]
[1755885606247,0.18269078,117100.0,117090.0,1.56543281]
[1755885606748,0.03585078,117100.0,117090.0,1.56543281]
[1755885607051,0.01986078,117100.0,117090.0,1.92623281]
[1755885607350,0.0004,117100.0,117090.0,1.92623281]
[1755885607843,0.0004,117100.0,117090.0,2.17623281]
[1755885609653,0.0004,117100.0,117090.0,1.77284854]
[1755885609854,0.0004,117100.0,117090.0,2.17623281]
[1755885610054,0.0004,117100.0,117090.0,1.77284854]
[1755885610256,0.0004,117100.0,117090.0,1.83420444]
[1755885610446,0.40378427,117100.0,117090.0,1.83420444]
[1755885611151,0.0004,117100.0,117090.0,1.83420444]
[1755885611348,0.40378427,117100.0,117090.0,1.83520444]
[1755885611550,0.40378427,117100.0,117090.0,1.77384854]
[1755885611551,0.0004,117100.0,117090.0,1.77384854]
[1755885611746,0.40378427,117100.0,117090.0,1.77384854]
[1755885612050,0.40378427,117100.0,117090.0,1.77584854]
[1755885613052,0.40378427,117100.0,117090.0,2.04494854]
[1755885613852,0.44294427,117100.0,117090.0,1.21974854]
[1755885614048,0.44294427,117100.0,117090.0,1.79418854]
[1755885614243,0.51785427,117100.0,117090.0,1.79418854]
[1755885615247,0.40378427,117100.0,117090.0,1.79418854]
[1755885615753,0.65547427,117100.0,117090.0,1.75282854]
[1755885615954,0.56755427,117100.0,117090.0,1.75282854]
[1755885616153,0.65547427,117100.0,117090.0,1.75282854]
[1755885616454,0.56755427,117100.0,117090.0,1.81418444]
[1755885616649,1.50465624,117100.0,117090.0,0.8242]
[1755885617352,1.10127197,117100.0,117090.0,0.8242]
[1755885617552,1.10127197,117100.0,117090.0,0.9096049]
[1755885621446,0.6978877,117100.0,117090.0,0.9096049]
[1755885621649,1.10167177,117100.0,117090.0,0.9098049]
[1755885622259,1.35167177,117100.0,117090.0,0.0856049]
[1755885622463,1.35167177,117100.0,117090.0,0.9094449]
[1755885623265,1.26627427,117100.0,117090.0,0.9094449]
[1755885623451,1.35167187,117100.0,117090.0,0.9094449]
[1755885623959,1.35167187,117100.0,117090.0,1.0466949]
[1755885624163,1.26627427,117100.0,117090.0,1.0466949]
[1755885624753,1.26627427,117100.0,117090.0,1.0703449]
[1755885624754,1.01627427,117100.0,117090.0,1.0703449]
[1755885624956,0.92835427,117100.0,117090.0,1.0703449]
[1755885625256,0.90460427,117100.0,117090.0,1.0703449]
[1755885625657,0.11447,117100.0,117090.0,1.0703449]
[1755885625848,0.03956,117100.0,117090.0,1.0703449]
[1755885626255,0.44294427,117100.0,117090.0,1.0703449]
[1755885626459,0.0004,117100.0,117090.0,2.08452917]
[1755885626758,0.0004,117100.0,117090.0,2.14560504]
[1755885627561,0.0004,117100.0,117090.0,2.16122405]
[1755885628153,0.0004,117100.0,117090.0,1.75783978]
[1755885628558,0.40378427,117100.0,117090.0,1.75783978]
[1755885628862,0.38181146,117100.0,117090.0,1.75783978]
[1755885629061,0.21705146,117100.0,117090.0,1.75763978]
[1755885629257,0.40338427,117100.0,117090.0,1.75763978]
[1755885629468,0.46548427,117100.0,117090.0,1.50763978]
[1755885629656,0.58196427,117100.0,117090.0,0.30737738]
[1755885629864,1.17059427,117100.0,117090.0,1.0460949]
[1755885630557,1.17059427,117100.0,117090.0,0.4726549]
[1755885630769,1.17059427,117100.0,117090.0,0.96688248]
[1755885630770,0.8526075,117100.0,117090.0,0.96688248]
[1755885630954,1.25599177,117100.0,117090.0,0.08245]
[1755885631259,1.25599177,117100.0,117090.0,0.82332]
[1755885631459,0.4918148,117090.0,117080.0,0.13123083]
[1755885631666,1.65938334,117090.0,117080.0,0.16548484]
[1755885632565,1.25599907,117090.0,117080.0,0.16548484]
[1755885632765,1.25639907,117090.0,117080.0,0.16668484]
[1755885633464,1.25639907,117090.0,117080.0,0.16568484]
[1755885633864,1.65978334,117090.0,117080.0,0.16668484]
[1755885634066,0.76761,117090.0,117080.0,0.25209694]
[1755885634263,1.17099427,117090.0,117080.0,0.16568484]
[1755885634563,1.17099427,117090.0,117080.0,0.16668484]
[1755885634860,1.65978344,117090.0,117080.0,0.16668484]
[1755885635064,1.25639917,117090.0,117080.0,0.16668484]
[1755885635467,1.25639917,117090.0,117080.0,0.16868484]
[1755885635765,1.25639917,117090.0,117080.0,0.16968484]
[1755885636566,1.25639917,117090.0,117080.0,0.16868484]
[1755885636862,1.17099427,117090.0,117080.0,0.25109694]
[1755885637066,1.17099427,117090.0,117080.0,0.25209694]
[1755885637568,0.62266,117090.0,117080.0,0.25109694]
[1755885637763,1.02604427,117090.0,117080.0,0.25109694]
[1755885637962,0.40681,117090.0,117080.0,0.25109694]
[1755885638161,0.40681,117090.0,117080.0,0.25409694]
[1755885638465,0.40681,117090.0,117080.0,0.9117721]
[1755885638466,1.17099427,117090.0,117080.0,0.9117721]
[1755885638667,1.17099427,117090.0,117080.0,0.9087721]
[1755885638865,1.17099427,117090.0,117080.0,0.9117721]
[1755885639573,0.76761,117090.0,117080.0,0.9117721]
[1755885639762,1.17099427,117090.0,117080.0,0.9127721]
[1755885640672,1.17099427,117090.0,117080.0,0.9097721]
[1755885640860,1.17099427,117090.0,117080.0,0.9127721]
[1755885641270,1.17099427,117090.0,117080.0,0.9097721]
[1755885641474,1.17099427,117090.0,117080.0,0.9127721]
[1755885642362,0.62266,117090.0,117080.0,0.97386254]
[1755885642564,1.17099427,117090.0,117080.0,0.97386254]
[1755885642768,0.81019427,117090.0,117080.0,0.9127721]
[1755885643573,1.17099427,117090.0,117080.0,0.9127721]
[1755885644167,0.81019427,117090.0,117080.0,0.9127721]
[1755885644373,1.17099427,117090.0,117080.0,0.9127721]
[1755885645191,0.81019427,117090.0,117080.0,0.9127721]
[1755885645877,0.40681,117090.0,117080.0,0.9127721]
[1755885646082,0.81019427,117090.0,117080.0,0.9127721]
[1755885646480,0.81019427,117090.0,117080.0,0.9126521]
[1755885646675,1.17099427,117090.0,117080.0,0.97374254]
[1755885646879,1.17099427,117090.0,117080.0,0.9126521]
[1755885647487,1.25639917,117090.0,117080.0,0.9126521]
[1755885647792,1.17099427,117090.0,117080.0,0.9126521]
[1755885648682,1.17099427,117090.0,117080.0,0.9116521]
[1755885648683,1.25639907,117090.0,117080.0,0.9116521]
[1755885648881,1.25639907,117090.0,117080.0,0.9126521]
[1755885649084,1.25639907,117090.0,117080.0,0.0042]
[1755885649284,1.25639907,117090.0,117080.0,0.8272]
[1755885650083,1.17099427,117090.0,117080.0,0.9126121]
[1755885651190,0.62266,117090.0,117080.0,0.9126121]
[1755885651386,0.76761,117090.0,117080.0,0.9126121]
[1755885651587,0.53978,117090.0,117080.0,1.1626121]
[1755885651789,0.0004,117090.0,117080.0,1.92679637]
[1755885652089,0.03860835,117110.0,117090.0,0.0854048]
[1755885652287,0.06222835,117110.0,117100.0,1.31174187]
[1755885652681,0.06222835,117110.0,117100.0,1.56174187]
[1755885652998,0.00012835,117110.0,117100.0,1.99923675]
[1755885653293,0.00012835,117110.0,117100.0,1.9836266]
[1755885653889,4e-05,117120.0,117110.0,0.0853903]
[1755885654091,4e-05,117120.0,117110.0,0.84957457]
[1755885654285,4e-05,117120.0,117110.0,1.24267461]
[1755885654986,4e-05,117120.0,117110.0,0.77288518]
[1755885655189,4e-05,117120.0,117110.0,1.24267461]
[1755885655494,0.00044,117120.0,117110.0,1.24287461]
[1755885655994,0.00144,117120.0,117110.0,1.35214964]
[1755885656389,0.00144,117120.0,117110.0,1.27545476]
[1755885656589,0.00044,117120.0,117110.0,1.27545476]
[1755885656991,0.00044,117120.0,117110.0,0.98043533]
[1755885657293,0.71109,117140.0,117130.0,0.1592657]
[1755885657496,0.71109,117140.0,117130.0,1.0817157]
[1755885657699,0.80803,117140.0,117130.0,1.0817157]
[1755885658391,0.80803,117140.0,117130.0,1.09885539]
[1755885658588,0.80803,117140.0,117130.0,1.14764153]
[1755885658896,1.27881943,117140.0,117130.0,1.14764153]
[1755885659491,0.80903,117140.0,117130.0,1.14764153]
[1755885659997,1.27881943,117140.0,117130.0,1.14764153]
[1755885660492,1.27881943,117140.0,117130.0,1.10254153]
[1755885660696,1.61458783,117140.0,117130.0,0.08672583]
[1755885660894,1.05943,117140.0,117130.0,0.99466153]
[1755885661093,1.52921943,117140.0,117130.0,1.11192153]
[1755885661298,0.80943,117140.0,117130.0,1.11300153]
[1755885661497,0.66448,117140.0,117130.0,1.13360153]
[1755885661692,0.81873,117140.0,117130.0,1.13360153]
[1755885662501,0.81873,117140.0,117130.0,1.11300153]
[1755885663000,1.28851943,117140.0,117130.0,1.11300153]
[1755885663298,0.45793,117140.0,117130.0,1.13360153]
[1755885663502,0.30368,117140.0,117130.0,1.38360153]
[1755885663799,1.28851943,117140.0,117130.0,0.29044153]
[1755885664096,1.62388783,117140.0,117130.0,0.08672583]
[1755885664302,1.62388783,117140.0,117130.0,0.90920583]
[1755885664890,1.62348783,117140.0,117130.0,0.73887583]
[1755885665094,0.0853804,117130.0,117120.0,0.82244]
[1755885665290,0.0853804,117130.0,117100.0,0.10235524]
[1755885665291,0.0811,117110.0,117100.0,0.10235524]
[1755885665606,1.02978943,117110.0,117100.0,1.31962524]
[1755885665797,1.02978943,117110.0,117100.0,1.23423134]
[1755885666000,1.36517973,117110.0,117100.0,0.01696134]
[1755885666204,1.72597973,117110.0,117100.0,0.01696134]
[1755885666403,1.39058943,117110.0,117100.0,0.83936134]
[1755885666699,1.0061903,117110.0,117100.0,1.09606134]
[1755885667002,1.72597973,117110.0,117100.0,0.83936134]
[1755885667402,1.64058943,117110.0,117100.0,0.92475894]
[1755885667895,1.64058943,117110.0,117100.0,0.92575894]
[1755885668095,1.64058943,117110.0,117100.0,0.92775894]
[1755885668297,1.64098943,117110.0,117100.0,0.92795894]
[1755885668497,1.64098943,117110.0,117100.0,1.06414894]
[1755885668696,1.64098943,117110.0,117100.0,1.35312894]
[1755885668697,1.03018943,117110.0,117100.0,1.35312894]
[1755885668902,0.5604,117110.0,117100.0,1.35312894]
[1755885669200,1.03018943,117110.0,117100.0,1.35312894]
[1755885669809,0.66938943,117110.0,117100.0,1.35312894]
[1755885670108,1.03018943,117110.0,117100.0,1.35312894]
[1755885670807,0.5604,117110.0,117100.0,1.35312894]
[1755885671002,1.03018943,117110.0,117100.0,1.35312894]
[1755885671206,0.5604,117110.0,117100.0,1.35312894]
[1755885671602,0.0815,117110.0,117100.0,1.60312894]
[1755885671912,0.0004,117110.0,117100.0,1.96392894]
[1755885673412,0.0004,117110.0,117100.0,1.60312894]
[1755885673602,0.0004,117110.0,117100.0,1.96392894]
[1755885673906,0.0004,117110.0,117100.0,1.60312894]
[1755885674104,0.1996,117110.0,117100.0,1.40033894]
[1755885674502,0.0004,117110.0,117100.0,1.76113894]
[1755885674709,0.0004,117110.0,117100.0,1.40033894]
[1755885674909,0.0004,117110.0,117100.0,1.76113894]
[1755885675303,0.0004,117110.0,117100.0,2.01217906]
[1755885675504,0.0004,117110.0,117100.0,2.48196849]
[1755885675909,0.4789,117130.0,117100.0,2.56736609]
[1755885676205,1.03083943,117140.0,117130.0,0.5578357]
[1755885676410,1.03083943,117140.0,117130.0,1.3801157]
[1755885677299,1.03083943,117140.0,117130.0,1.38115582]
[1755885678011,1.03043943,117140.0,117130.0,1.38115582]
[1755885678211,0.56065,117140.0,117130.0,1.38115582]
[1755885678410,0.56165,117140.0,117130.0,1.38115582]
[1755885678908,0.0821,117140.0,117130.0,1.38115582]
[1755885679114,0.001,117140.0,117130.0,1.38115582]
[1755885679406,0.0014,117140.0,117130.0,1.38135582]
[1755885680913,0.0014,117140.0,117130.0,1.45014087]
[1755885682422,0.0014,117140.0,117130.0,1.81094087]
[1755885682606,0.0014,117140.0,117130.0,1.45014087]
[1755885683220,0.0014,117140.0,117130.0,1.81094087]
[1755885684019,0.0014,117140.0,117130.0,1.45014087]
[1755885684215,0.0014,117140.0,117130.0,2.06094087]
[1755885684417,1.04932191,117160.0,117150.0,0.4373111]
[1755885684612,1.04932191,117160.0,117150.0,1.3797811]
[1755885685218,0.56,117160.0,117150.0,1.3797811]
[1755885685418,1.04832943,117170.0,117160.0,0.2688338]
[1755885685622,1.05946943,117170.0,117160.0,0.5578138]
[1755885686113,0.37950409,117180.0,117170.0,0.1156865]
[1755885686114,0.59724409,117180.0,117170.0,0.1156865]
[1755885686423,0.60838409,117180.0,117170.0,1.38076662]
[1755885686613,0.59724409,117180.0,117170.0,1.38076662]
[1755885686814,1.07817352,117180.0,117170.0,1.38076662]
[1755885689217,1.16351282,117180.0,117170.0,1.30422174]
[1755885689421,1.41391282,117180.0,117170.0,0.01004174]
[1755885689626,1.41391282,117180.0,117170.0,0.83184174]
[1755885689825,1.41391282,117180.0,117170.0,0.94219174]
[1755885690026,1.16391282,117180.0,117170.0,0.94219174]
[1755885690324,1.16391282,117180.0,117170.0,0.97280174]
[1755885690527,1.16391282,117180.0,117170.0,1.14259174]
[1755885690823,1.16391282,117180.0,117170.0,1.21853174]
[1755885691424,1.16391282,117180.0,117170.0,0.83184174]
[1755885691626,1.41391282,117180.0,117170.0,0.83184174]
[1755885691921,1.43376004,117180.0,117170.0,0.83184174]
[1755885692116,1.43376004,117180.0,117170.0,1.27326824]
[1755885692315,1.34842074,117180.0,117170.0,1.31840824]
[1755885692516,1.32857352,117180.0,117170.0,1.31840824]
[1755885692724,1.16391272,117180.0,117170.0,1.31840824]
[1755885694327,1.16391272,117180.0,117170.0,0.94219174]
[1755885695419,1.16391272,117180.0,117170.0,1.11198174]
[1755885695619,1.16391272,117180.0,117170.0,0.94219174]
[1755885696324,1.18375045,117180.0,117170.0,0.94219174]
[1755885696525,1.18375045,117180.0,117170.0,0.83184174]
[1755885696726,1.18375045,117180.0,117170.0,0.01004174]
[1755885696925,1.43375045,117180.0,117170.0,0.20573824]
[1755885697126,1.43375045,117180.0,117170.0,0.40613824]
[1755885697323,1.43375045,117180.0,117170.0,0.48207824]
[1755885697522,1.43375045,117180.0,117170.0,0.31228824]
[1755885697924,1.43375045,117180.0,117170.0,0.48207824]
[1755885698126,1.43375045,117180.0,117170.0,0.39673174]
[1755885698320,1.43375045,117180.0,117170.0,0.32079174]
[1755885698630,1.43375045,117180.0,117170.0,0.48207824]
[1755885699031,1.43375045,117180.0,117170.0,0.57989824]
[1755885702133,1.34841125,117180.0,117170.0,0.57989824]
[1755885702327,1.09841125,117180.0,117170.0,0.57989824]
[1755885703136,0.62862182,117180.0,117170.0,0.57989824]
[1755885703339,1.09841125,117180.0,117170.0,0.57989824]
[1755885703641,1.18375045,117180.0,117170.0,0.57989824]
[1755885703836,1.18375045,117180.0,117170.0,0.58289824]
[1755885704027,0.62862182,117180.0,117170.0,0.58289824]
[1755885704233,1.07970716,117180.0,117170.0,0.58589824]
[1755885704534,1.16504636,117180.0,117170.0,0.58589824]
[1755885704735,1.16504636,117180.0,117170.0,0.50055174]
[1755885704933,1.16504636,117180.0,117170.0,0.12639174]
[1755885705330,1.16504636,117180.0,117170.0,0.50055174]
[1755885705535,1.16504636,117180.0,117170.0,0.58589824]
[1755885705739,1.07970716,117180.0,117170.0,0.58589824]
[1755885706033,1.07970716,117180.0,117170.0,0.6034587]
[1755885706435,1.05986943,117180.0,117170.0,0.6034587]
[1755885707141,1.04872943,117180.0,117170.0,0.6034587]
[1755885707534,1.05986943,117180.0,117170.0,0.6034587]
[1755885708137,1.14520873,117180.0,117170.0,0.6034587]
[1755885708648,1.14520873,117180.0,117170.0,0.1439522]
[1755885708842,1.39520873,117180.0,117170.0,0.0336022]
[1755885709249,0.22876,117160.0,117150.0,1.40875361]
[1755885709453,1.05934943,117160.0,117150.0,1.40875361]
[1755885709954,1.05934943,117160.0,117150.0,1.41763426]
[1755885710446,1.05934943,117160.0,117150.0,1.42163426]
[1755885710646,1.14470323,117160.0,117150.0,1.12122776]
[1755885710849,1.14470323,117160.0,117150.0,1.42151886]
[1755885711044,1.14470323,117160.0,117150.0,1.42651886]
[1755885711244,1.50550323,117160.0,117150.0,1.19422175]
[1755885711444,1.50550323,117160.0,117150.0,1.27865065]
[1755885711952,1.50550323,117160.0,117150.0,1.40915175]
[1755885712650,0.95036,117160.0,117150.0,1.40915175]
[1755885712852,1.42054943,117160.0,117150.0,1.40935175]
[1755885713357,1.05974943,117160.0,117150.0,1.40935175]
[1755885713652,0.90971943,117160.0,117150.0,1.40935175]
[1755885713851,0.3612,117160.0,117150.0,1.40935175]
[1755885714449,0.0004,117160.0,117150.0,1.40935175]
[1755885714652,0.0004,117160.0,117150.0,1.65935175]
[1755885715552,0.0004,117160.0,117150.0,1.72034627]
[1755885716959,0.47018943,117160.0,117150.0,1.65935175]
[1755885717258,1.05954943,117160.0,117150.0,0.58795175]
[1755885717557,1.05954943,117160.0,117150.0,1.40931175]
[1755885717759,1.14490323,117160.0,117150.0,1.40931175]
[1755885717964,1.05954943,117160.0,117150.0,1.40931175]
[1755885718152,1.14490323,117160.0,117150.0,1.40931175]
[1755885718957,1.05954943,117160.0,117150.0,1.40931175]
[1755885719559,1.14490323,117160.0,117150.0,1.40931175]
[1755885719757,0.58976,117160.0,117150.0,1.40931175]
[1755885719958,1.05954943,117160.0,117150.0,1.40931175]
[1755885720560,1.14490323,117160.0,117150.0,1.40931175]
[1755885720948,1.14490323,117160.0,117150.0,0.15904065]
[1755885721148,1.39490323,117160.0,117150.0,0.01808065]
[1755885721354,1.41458343,117160.0,117150.0,0.01808065]
[1755885721563,1.88437286,117160.0,117150.0,0.01808065]
[1755885721752,1.41458343,117160.0,117150.0,0.01808065]
[1755885721949,1.41458343,117160.0,117150.0,0.38404065]
[1755885722157,1.16458343,117160.0,117150.0,0.47662065]
[1755885722656,1.07922963,117160.0,117150.0,0.56198175]
[1755885722859,1.32922963,117160.0,117150.0,0.56198175]
[1755885723057,1.07922963,117160.0,117150.0,0.56198175]
[1755885723363,1.05954943,117160.0,117150.0,0.56198175]
[1755885724160,1.14490323,117160.0,117150.0,0.01808065]
[1755885725160,1.41457444,117160.0,117150.0,0.0092]
[1755885725355,1.16457444,117160.0,117150.0,0.0092]
[1755885728263,1.16457444,117160.0,117150.0,0.2312512]
[1755885728462,1.16457444,117160.0,117150.0,0.4605212]
[1755885728766,1.16457444,117160.0,117150.0,0.5036112]
[1755885729064,1.14490323,117160.0,117150.0,0.41825]
[1755885729455,1.14490323,117160.0,117150.0,0.46774]
[1755885729863,1.14490323,117160.0,117150.0,0.5531012]
[1755885730552,1.05954943,117160.0,117150.0,0.5481012]
[1755885730757,1.05954943,117160.0,117150.0,0.5501012]
[1755885731158,1.03832943,117160.0,117150.0,0.5501012]
[1755885731358,0.5767,117160.0,117150.0,0.5461012]